bitfinex-derivatives/quotes_ETHF0:USTF0_20250816
["timestamp","ask_amount","ask_price","bid_price","bid_amount"]
[1755366621763,0.45363,4405.8,4405.6,0.5936]
[1755366621962,0.45363,4405.8,4405.7,22.079]
[1755366621963,1.68733,4405.8,4405.7,22.079]
[1755366622262,1.95043,4405.8,4405.7,22.079]
[1755366622464,1.68733,4405.8,4405.7,22.079]
[1755366622762,1.27453,4405.8,4405.7,22.079]
[1755366623158,1.51583,4405.8,4405.7,22.079]
[1755366623354,1.68733,4405.8,4405.7,22.079]
[1755366623562,1.95043,4405.8,4405.7,22.079]
[1755366629672,1.95043,4405.8,4405.7,20.575]
[1755366629880,1.95043,4405.8,4405.7,21.0863]
[1755366630267,1.95043,4405.8,4405.7,22.079]
[1755366632280,1.69115376,4405.8,4405.7,22.079]
[1755366632577,1.95425376,4405.8,4405.7,22.079]
[1755366633280,1.44985376,4405.8,4405.7,22.079]
[1755366633481,1.69115376,4405.8,4405.7,22.079]
[1755366633777,1.95425376,4405.8,4405.7,22.079]
[1755366634879,1.69115376,4405.8,4405.7,22.079]
[1755366635776,0.45745376,4405.8,4405.7,22.079]
[1755366636081,0.84975376,4405.8,4405.7,25.2868]
[1755366636276,1.51965376,4405.8,4405.7,25.2868]
[1755366636471,1.27835376,4405.8,4405.7,25.2868]
[1755366637581,1.95425376,4405.8,4405.7,25.2828]
[1755366638076,1.69115376,4405.8,4405.7,25.2828]
[1755366639179,1.23752376,4405.8,4405.7,25.2828]
[1755366640387,1.50062376,4405.8,4405.7,24.1151]
[1755366640586,1.50062376,4405.8,4405.7,24.6264]
[1755366640786,1.50062376,4405.8,4405.7,25.0255]
[1755366640988,1.50062376,4405.8,4405.7,4.4555]
[1755366641191,1.50062376,4405.8,4405.7,23.7778]
[1755366642092,1.50062376,4405.8,4405.7,24.0297]
[1755366642489,1.50062376,4405.8,4405.7,24.4562]
[1755366642789,1.50062376,4405.8,4405.7,25.2818]
[1755366642984,0.26692376,4405.8,4405.7,25.2818]
[1755366643889,0.65922376,4405.8,4405.7,25.2818]
[1755366645991,0.82472376,4405.8,4405.7,25.2818]
[1755366646190,1.06602376,4405.8,4405.7,25.2818]
[1755366646782,0.82472376,4405.8,4405.7,25.2818]
[1755366647787,0.00382376,4405.8,4405.7,25.73543]
[1755366650089,0.00382376,4405.8,4405.7,25.2818]
[1755366650997,0.00382376,4405.8,4405.7,25.73543]
[1755366651199,0.40212376,4405.8,4405.7,25.73543]
[1755366651398,0.40212376,4405.8,4405.7,25.2818]
[1755366651699,1.06642376,4405.8,4405.7,25.2818]
[1755366652092,0.82292376,4405.8,4405.7,25.2818]
[1755366653094,1.06642376,4405.8,4405.7,25.2818]
[1755366654201,0.82292376,4405.8,4405.7,25.2818]
[1755366658096,1.06642376,4405.8,4405.7,25.2818]
[1755366658599,0.82292376,4405.8,4405.7,25.2818]
[1755366659303,1.49792376,4405.8,4405.7,25.2818]
[1755366660101,1.49792376,4405.8,4405.7,4.7118]
[1755366660298,1.27702376,4405.8,4405.7,20.566]
[1755366660498,1.95154376,4405.8,4405.7,20.566]
[1755366660704,1.95154376,4405.8,4405.7,21.0599]
[1755366660905,1.95154376,4405.8,4405.7,21.2366]
[1755366661205,1.95154376,4405.8,4405.7,22.06]
[1755366661692,0.00382376,4405.8,4405.7,22.06]
[1755366661900,0.00382376,4405.8,4405.7,25.2678]
[1755366662100,1.24392376,4405.8,4405.7,4.3102]
[1755366662300,1.49792376,4405.8,4405.7,24.8762]
[1755366662798,1.49792376,4405.8,4405.7,25.2678]
[1755366663201,1.49792376,4405.8,4405.7,3.2078]
[1755366663405,1.49792376,4405.8,4405.7,23.7738]
[1755366664501,1.05197,4405.3,4405.2,3.2078]
[1755366664699,1.94777,4405.3,4405.2,25.2678]
[1755366665495,1.94777,4405.3,4405.2,24.8762]
[1755366665705,1.94777,4405.3,4405.2,23.7738]
[1755366665906,1.4941,4405.3,4405.2,24.8752]
[1755366666106,0.87825376,4405.8,4405.7,0.6085]
[1755366666306,1.12175376,4405.8,4405.7,21.6674]
[1755366666506,1.52005376,4405.8,4405.7,22.059]
[1755366666703,1.69755376,4405.8,4405.7,22.059]
[1755366666904,1.95155376,4405.8,4405.7,22.059]
[1755366673207,1.95155376,4405.8,4405.7,21.6674]
[1755366673405,1.94777,4405.3,4405.2,4.4612]
[1755366673611,1.94777,4405.3,4405.2,25.0272]
[1755366673917,1.94777,4405.3,4405.2,25.2678]
[1755366675108,1.45027,4405.3,4405.2,25.2678]
[1755366675309,0.45367,4405.4,4405.3,0.8855]
[1755366675515,0.87447,4405.4,4405.3,22.06]
[1755366675714,1.51627,4405.4,4405.3,22.06]
[1755366676011,1.69377,4405.4,4405.3,22.06]
[1755366676210,1.94777,4405.4,4405.3,22.06]
[1755366678510,1.52677,4405.4,4405.3,22.06]
[1755366678911,0.00382376,4405.8,4405.3,21.1745]
[1755366679105,1.28775376,4405.8,4405.7,0.5816]
[1755366679312,1.94805376,4405.8,4405.7,22.0121]
[1755366685616,1.69385376,4405.8,4405.7,22.0121]
[1755366686017,1.94805376,4405.8,4405.7,22.0121]
[1755366686219,1.44985376,4405.8,4405.7,22.0121]
[1755366686415,0.89365376,4405.8,4405.7,22.0121]
[1755366687313,1.28775376,4405.8,4405.7,22.0121]
[1755366687508,0.88987,4405.3,4405.2,3.2078]
[1755366687819,1.94427,4405.3,4405.2,23.7728]
[1755366688019,0.4362,4405.3,4405.2,25.2189]
[1755366688219,0.8303,4405.3,4405.2,25.2189]
[1755366689321,1.2364,4405.3,4405.2,25.2189]
[1755366690417,1.4906,4405.3,4405.2,25.2189]
[1755366691114,1.4906,4405.3,4405.2,23.7728]
[1755366691320,1.4906,4405.3,4405.2,24.6105]
[1755366691515,1.4906,4405.3,4405.2,3.546]
[1755366691821,1.4906,4405.3,4405.2,23.934]
[1755366692020,1.4906,4405.3,4405.2,24.2723]
[1755366693621,1.4906,4405.3,4405.2,24.4335]
[1755366693817,1.4906,4405.3,4405.2,25.2189]
[1755366694723,1.4906,4405.3,4405.2,24.8539]
[1755366694924,1.4906,4405.3,4405.2,23.7728]
[1755366696920,1.4906,4405.3,4405.2,20.565]
[1755366699223,1.4906,4405.3,4405.2,21.0645]
[1755366702326,1.4906,4405.3,4405.2,21.0655]
[1755366702530,1.4906,4405.3,4405.2,21.4305]
[1755366702726,1.4906,4405.3,4405.2,1.0257]
[1755366702933,1.4906,4405.3,4405.2,22.0121]
[1755366704739,1.2364,4405.3,4405.2,22.0121]
[1755366705734,1.4906,4405.3,4405.2,22.0121]
[1755366706331,1.2364,4405.3,4405.2,22.0121]
[1755366708641,1.4906,4405.3,4405.2,22.0121]
[1755366713348,1.4906,4405.3,4405.2,1.4461]
[1755366713646,0.6427,4404.7,4404.2,3.2078]
[1755366713849,1.03038,4404.3,4404.2,0.344]
[1755366714144,1.03038,4404.3,4404.2,21.7723]
[1755366714337,1.93088,4404.3,4404.2,22.0345]
[1755366714535,2.16556982,4404.3,4404.2,22.0345]
[1755366715543,2.16556982,4404.3,4404.2,20.565]
[1755366716947,2.16541078,4404.3,4404.2,20.565]
[1755366717136,2.16541078,4404.3,4404.2,21.0654]
[1755366718744,0.45382,4403.9,4403.8,0.248]
[1755366719039,1.93092,4403.9,4403.8,21.7743]
[1755366719241,1.93092,4403.9,4403.8,22.0365]
[1755366719754,1.93092,4403.9,4403.8,1.4695]
[1755366720049,1.93092,4403.9,4403.8,22.0365]
[1755366721843,1.93092,4403.9,4403.8,1.4695]
[1755366722042,1.93092,4403.9,4403.8,22.0375]
[1755366732357,1.93092,4403.9,4403.8,1.4695]
[1755366732554,1.93092,4403.9,4403.8,22.0395]
[1755366732959,1.93092,4403.9,4403.8,1.4695]
[1755366733255,1.93092,4403.9,4403.8,22.0405]
[1755366733861,1.93092,4403.9,4403.8,1.4695]
[1755366734160,1.93092,4403.9,4403.8,22.0405]
[1755366735261,1.93092,4403.9,4403.8,1.4695]
[1755366735558,1.93092,4403.9,4403.8,22.0405]
[1755366736155,0.45389,4403.2,4403.1,4.16419956]
[1755366736457,1.93099,4403.2,4403.1,21.88049956]
[1755366737252,1.93099,4403.2,4403.1,22.14269956]
[1755366738160,2.1748056,4403.2,4403.1,22.14269956]
[1755366738459,1.93099,4403.2,4403.1,22.14269956]
[1755366739059,2.1747698,4403.2,4403.1,22.14269956]
[1755366739462,2.17483035,4403.2,4403.1,22.14269956]
[1755366746457,2.17483035,4403.2,4403.1,20.67319956]
[1755366746859,2.17483035,4403.2,4403.1,20.92029956]
[1755366747055,2.17483035,4403.2,4403.1,9.56e-06]
[1755366747255,2.83385813,4403.2,4403.1,9.56e-06]
[1755366750469,2.33395813,4403.2,4403.1,1.49460956]
[1755366750668,2.58865813,4403.2,4403.1,1.49460956]
[1755366750861,2.85109364,4403.2,4403.1,1.49460956]
[1755366754569,2.58869364,4403.2,4403.1,1.49460956]
[1755366755672,2.85109364,4403.2,4403.1,1.49460956]
[1755366755963,2.58869364,4403.2,4403.1,1.49460956]
[1755366756170,0.69776586,4403.2,4403.1,1.51730956]
[1755366760369,0.69776586,4403.2,4403.1,1.49460956]
[1755366765168,0.45389,4403.2,4403.1,1.49460956]
[1755366767172,0.45385,4403.6,4403.5,1.4946]
[1755366767374,0.45385,4403.6,4403.5,25.2774]
[1755366768072,0.45383,4403.8,4403.7,0.9001]
[1755366768269,0.644,4404.4,4403.7,1.4946]
[1755366768472,1.10398691,4404.3,4404.2,0.5945]
[1755366768668,1.35868691,4404.3,4404.2,22.049]
[1755366769169,1.73718691,4404.3,4404.2,22.049]
[1755366771172,1.73693486,4404.3,4404.2,22.049]
[1755366771674,1.48223486,4404.3,4404.2,22.049]
[1755366772279,1.73933486,4404.3,4404.2,22.049]
[1755366774279,0.93973486,4404.3,4404.2,22.049]
[1755366774875,1.31823486,4404.3,4404.2,22.049]
[1755366775072,1.48943486,4404.3,4404.2,22.049]
[1755366775277,1.92223486,4404.3,4404.2,22.049]
[1755366777283,1.92195452,4404.3,4404.2,22.049]
[1755366777677,0.45378,4404.3,4404.2,22.049]
[1755366781188,0.5982,4405.2,4405.1,0.3313]
[1755366781386,1.30146786,4405.2,4405.1,22.0448]
[1755366781583,2.19655786,4405.2,4405.1,21.6522]
[1755366781882,2.19655786,4405.2,4405.1,22.0448]
[1755366782892,0.69705786,4405.2,4405.1,22.0448]
[1755366783086,1.93085786,4405.2,4405.1,22.0448]
[1755366783283,0.45369,4405.2,4405.1,22.0448]
[1755366784289,0.45368,4405.3,4405.2,1.4748]
[1755366784685,1.13404,4406.0,4405.2,1.4748]
[1755366784686,0.45367,4405.4,4405.2,0.5963]
[1755366784991,0.45367,4405.4,4405.3,22.0458]
[1755366785991,1.68747,4405.4,4405.3,22.0458]
[1755366787192,1.95317,4405.4,4405.3,22.0458]
[1755366788992,0.4537,4405.1,4405.0,3.2078]
[1755366789293,1.9532,4405.1,4405.0,24.9846]
[1755366790996,1.9532,4405.1,4405.0,23.7748]
[1755366791195,1.9532,4405.1,4405.0,24.0173]
[1755366791500,1.9532,4405.1,4405.0,24.2607]
[1755366791894,1.9532,4405.1,4405.0,24.6533]
[1755366792094,1.9532,4405.1,4405.0,24.8239]
[1755366792797,1.9532,4405.1,4405.0,24.9846]
[1755366793600,1.9532,4405.1,4405.0,25.2496]
[1755366794999,1.9532,4405.1,4405.0,22.0418]
[1755366795699,1.6875,4405.1,4405.0,22.0418]
[1755366797296,1.92957873,4405.1,4405.0,22.0418]
[1755366799700,0.69577873,4405.1,4405.0,22.0418]
[1755366799900,1.50657873,4405.1,4405.0,22.0418]
[1755366800095,1.92637873,4405.1,4405.0,22.0418]
[1755366800296,2.18347873,4405.1,4405.0,22.0418]
[1755366801796,0.95937873,4405.1,4405.0,22.0418]
[1755366801995,1.38137873,4405.1,4405.0,22.0418]
[1755366802200,2.18347873,4405.1,4405.0,22.0418]
[1755366802396,0.45375,4404.6,4404.5,3.4688]
[1755366802596,1.42895,4404.6,4404.5,4.432]
[1755366802796,1.68435,4404.6,4404.5,24.997]
[1755366802997,1.94145,4404.6,4404.5,25.2416]
[1755366803397,0.45375,4404.6,4404.5,25.2416]
[1755366803594,1.68435,4404.6,4404.5,25.2416]
[1755366803799,1.94145,4404.6,4404.5,25.2416]
[1755366804096,1.94145,4404.6,4404.5,4.6766]
[1755366804298,1.94145,4404.6,4404.5,23.7728]
[1755366804604,2.18382726,4404.6,4404.5,23.7728]
[1755366804802,2.18382726,4404.6,4404.5,24.2784]
[1755366805212,2.18382726,4404.6,4404.5,24.9873]
[1755366805404,1.92672726,4404.6,4404.5,25.2416]
[1755366805704,0.69612726,4404.6,4404.5,25.2416]
[1755366806107,1.92672726,4404.6,4404.5,25.2416]
[1755366806601,2.18382726,4404.6,4404.5,25.2416]
[1755366806801,2.18382726,4404.6,4404.5,4.4156]
[1755366807001,2.18382726,4404.6,4404.5,25.2416]
[1755366807600,2.18382726,4404.6,4404.5,4.6766]
[1755366808106,2.18382726,4404.6,4404.5,25.2416]
[1755366808801,2.18382726,4404.6,4404.5,4.6766]
[1755366809001,2.18382726,4404.6,4404.5,25.2416]
[1755366811108,2.18406038,4404.6,4404.5,25.2416]
[1755366811310,1.92696038,4404.6,4404.5,25.2416]
[1755366811509,1.92696038,4404.6,4404.5,4.6766]
[1755366811809,1.92696038,4404.6,4404.5,25.2416]
[1755366815510,2.18402094,4404.6,4404.5,25.2416]
[1755366816412,2.18402094,4404.6,4404.5,4.6766]
[1755366816612,2.18402094,4404.6,4404.5,25.2416]
[1755366816915,1.94145,4404.6,4404.5,24.622]
[1755366817213,2.18404545,4404.6,4404.5,24.9873]
[1755366817513,2.18404545,4404.6,4404.5,25.2416]
[1755366819917,2.18408079,4404.6,4404.5,25.2416]
[1755366821617,0.69638079,4404.6,4404.5,25.2416]
[1755366821917,1.50718079,4404.6,4404.5,25.2416]
[1755366822216,1.92698079,4404.6,4404.5,25.2416]
[1755366823916,1.68435,4404.6,4404.5,25.2416]
[1755366824117,1.92700738,4404.6,4404.5,25.2416]
[1755366825712,2.18410738,4404.6,4404.5,25.2416]
[1755366826617,1.92700738,4404.6,4404.5,25.2416]
[1755366828418,2.18410738,4404.6,4404.5,25.2416]
[1755366831720,1.92700738,4404.6,4404.5,25.2416]
[1755366836623,2.18510738,4404.6,4404.5,25.2416]
[1755366837524,2.18547946,4404.6,4404.5,25.2416]
[1755366838521,1.92737946,4404.6,4404.5,25.2416]
[1755366838825,2.18547946,4404.6,4404.5,25.2416]
[1755366839628,1.92737946,4404.6,4404.5,25.2416]
[1755366839831,2.18547946,4404.6,4404.5,25.2416]
[1755366841427,0.69677946,4404.6,4404.5,25.2416]
[1755366843029,1.08977946,4404.6,4404.5,25.2416]
[1755366843330,1.51867946,4404.6,4404.5,25.2416]
[1755366843531,1.76647946,4404.6,4404.5,25.2416]
[1755366844335,0.69677946,4404.6,4404.5,25.2416]
[1755366845328,0.68309163,4404.6,4404.5,25.2416]
[1755366848033,1.17655163,4405.1,4405.0,0.5995]
[1755366848230,1.83916589,4405.1,4405.0,22.0586]
[1755366850038,2.17656589,4405.1,4405.0,22.0586]
[1755366852139,0.45815163,4405.1,4405.0,22.0586]
[1755366862244,0.45365,4405.6,4405.5,1.495]
[1755366862547,0.45365,4405.6,4405.5,22.053]
[1755366862750,0.77185,4405.6,4405.5,22.053]
[1755366864849,0.93965,4405.6,4405.5,22.053]
[1755366866045,0.93965,4405.6,4405.5,25.2608]
[1755366871543,0.62145,4405.6,4405.5,25.2608]
[1755366871750,0.93965,4405.6,4405.5,25.2608]
[1755366875049,0.93965,4405.6,4405.5,4.3225]
[1755366875250,1.48545,4405.6,4405.5,24.8765]
[1755366875549,1.48545,4405.6,4405.5,25.2568]
[1755366879152,1.23655,4405.6,4405.5,24.6179]
[1755366879458,1.48545,4405.6,4405.5,25.2568]
[1755366880956,1.18495,4405.6,4405.5,25.2568]
[1755366881157,0.62145,4405.6,4405.5,25.2568]
[1755366882655,0.93965,4405.6,4405.5,25.2568]
[1755366883361,0.62145,4405.6,4405.5,25.2568]
[1755366883754,0.93965,4405.6,4405.5,25.2568]
[1755366885460,1.48545,4405.6,4405.5,25.2568]
[1755366886161,1.21675,4405.6,4405.5,24.8765]
[1755366886361,1.48545,4405.6,4405.5,25.2568]
[1755366887263,1.70672828,4405.6,4405.5,25.2568]
[1755366891766,1.70684519,4405.6,4405.5,25.2568]
[1755366894863,0.67504519,4405.6,4405.5,25.2568]
[1755366895269,1.17154519,4405.6,4405.5,25.2568]
[1755366895469,1.41514519,4405.6,4405.5,25.2568]
[1755366896273,1.67124519,4405.6,4405.5,25.2568]
[1755366897171,1.69114519,4405.6,4405.5,25.2568]
[1755366897972,1.6911983,4405.6,4405.5,25.2568]
[1755366898372,1.7229983,4405.6,4405.5,25.2568]
[1755366900668,1.7229983,4405.6,4405.5,4.7028]
[1755366900875,1.5016,4405.1,4405.0,0.2409]
[1755366901170,1.5016,4405.1,4405.0,21.041]
[1755366901371,1.5016,4405.1,4405.0,21.7734]
[1755366901573,1.5016,4405.1,4405.0,22.0344]
[1755366902871,3.2078,4405.9,4405.0,22.10171]
[1755366903075,2.38489691,4405.8,4405.7,1.4854]
[1755366903279,2.38489691,4405.8,4405.7,22.0344]
[1755366910286,2.36499691,4405.8,4405.7,22.0344]
[1755366910487,2.38489691,4405.8,4405.7,22.0344]
[1755366911188,2.38514849,4405.8,4405.7,22.0344]
[1755366911482,2.38514823,4405.8,4405.7,22.0344]
[1755366914187,2.38514775,4405.8,4405.7,22.0344]
[1755366915784,1.75904775,4405.8,4405.7,22.0344]
[1755366916084,2.33344775,4405.8,4405.7,22.0344]
[1755366916287,2.35334775,4405.8,4405.7,22.0344]
[1755366916588,2.38514775,4405.8,4405.7,22.0344]
[1755366917291,1.75904775,4405.8,4405.7,21.648]
[1755366917590,2.38514775,4405.8,4405.7,22.0344]
[1755366918490,2.38544775,4405.8,4405.7,1.4854]
[1755366918690,2.38544775,4405.8,4405.7,22.0334]
[1755366920089,2.38545427,4405.8,4405.7,22.0334]
[1755366924292,0.45369,4405.2,4405.1,0.6]
[1755366924490,0.45373,4404.8,4404.7,0.2563]
[1755366924795,1.12935346,4404.8,4404.7,22.0357]
[1755366925292,1.44735346,4404.8,4404.7,22.0357]
[1755366925493,1.71675346,4404.8,4404.7,22.0357]
[1755366925888,1.71664128,4404.8,4404.7,22.0357]
[1755366926294,1.49503,4404.8,4404.7,22.0357]
[1755366927594,1.49503,4404.8,4404.7,1.4887]
[1755366927786,1.49503,4404.8,4404.7,22.0367]
[1755366929293,1.19403,4404.8,4404.7,22.0367]
[1755366929492,0.45373,4404.8,4404.7,22.0367]
[1755366930100,0.45373,4404.8,4404.7,1.4887]
[1755366930391,0.45373,4404.8,4404.7,22.0367]
[1755366933200,0.45373,4404.9,4404.8,1.0788]
[1755366933498,0.45373,4404.9,4404.8,1.4887]
[1755366933900,0.45366,4405.5,4405.4,1.4887]
[1755366934094,0.45366,4405.5,4405.4,22.0367]
[1755366937201,0.45365,4405.6,4405.5,1.4887]
[1755366940093,0.45364,4405.7,4405.5,0.594]
[1755366940299,0.45364,4405.7,4405.6,22.0347]
[1755366940698,0.77164,4405.7,4405.6,22.0347]
[1755366940998,0.45364,4405.7,4405.6,22.0347]
[1755366941205,3.2078,4406.4,4405.7,0.594]
[1755366941405,0.9434,4406.1,4406.0,1.4887]
[1755366941599,1.17000429,4406.1,4406.0,22.03096055]
[1755366942301,1.16995984,4406.1,4406.0,22.03096055]
[1755366942502,0.9434,4406.1,4406.0,22.03096055]
[1755366944702,1.1939,4406.1,4406.0,22.03096055]
[1755366945308,1.4633,4406.1,4406.0,22.03096055]
[1755366948219,0.6254,4406.1,4406.0,22.03096055]
[1755366948612,0.9434,4406.1,4406.0,22.03096055]
[1755366953217,1.2008,4406.1,4406.0,22.03096055]
[1755366953520,1.5015,4406.1,4406.0,1.48496055]
[1755366953719,1.5015,4406.1,4406.0,22.02596055]
[1755366954418,1.5015,4406.1,4406.0,20.541]
[1755366954618,1.20447,4405.4,4405.3,4.7057]
[1755366954817,1.20447,4405.4,4405.3,25.2467]
[1755366955021,0.7508,4405.4,4405.3,25.70038]
[1755366955213,0.7508,4405.4,4405.3,25.2467]
[1755366957513,0.7508,4405.4,4405.3,4.7057]
[1755366957718,1.0515,4405.4,4405.3,22.0379]
[1755366961124,1.0319,4405.4,4405.3,22.0379]
[1755366961320,0.7508,4405.4,4405.3,22.0379]
[1755366961917,4.34185,4405.9,4405.3,22.0379]
[1755366961918,1.13395,4406.3,4405.4,0.4079]
[1755366962127,0.68022319,4406.2,4406.1,1.4979]
[1755366962326,1.17342319,4406.2,4406.1,22.0379]
[1755366962624,1.17347468,4406.2,4406.1,22.0379]
[1755366963029,1.7312736,4406.2,4406.1,22.0379]
[1755366965028,0.91772,4405.9,4405.8,0.8681]
[1755366965225,1.50462,4405.9,4405.8,22.0379]
[1755366968432,1.50462,4405.9,4405.8,22.0369]
[1755366969026,1.50462,4405.9,4405.8,1.4979]
[1755366969227,1.50462,4405.9,4405.8,22.0369]
[1755366970028,0.45366,4405.5,4405.4,0.8681]
[1755366970236,0.88656,4405.5,4405.4,22.0369]
[1755366970635,1.20426,4405.5,4405.4,22.0369]
[1755366971736,0.94686,4405.5,4405.4,22.0369]
[1755366971933,0.62916,4405.5,4405.4,22.0369]
[1755366973540,0.94686,4405.5,4405.4,22.0369]
[1755366978337,1.50466,4405.5,4405.4,22.0369]
[1755366978635,1.50466,4405.5,4405.4,20.7835]
[1755366978832,1.50466,4405.5,4405.4,21.393]
[1755366979036,1.50466,4405.5,4405.4,1.4593]
[1755366979238,1.50466,4405.5,4405.4,21.9973]
[1755366982040,1.23546,4405.5,4405.4,21.9973]
[1755366982438,1.25526,4405.5,4405.4,1.4593]
[1755366982639,1.50166,4405.5,4405.4,21.9973]
[1755366983133,1.23546,4405.5,4405.4,21.9973]
[1755366983533,1.20426,4405.5,4405.4,21.9973]
[1755366983940,0.88656,4405.5,4405.4,21.9973]
[1755366985541,0.62916,4405.5,4405.4,21.9973]
[1755366985841,0.45366,4405.5,4405.4,21.9973]
[1755366987035,0.94416,4405.5,4405.4,21.9973]
[1755366987941,0.62606,4405.5,4405.4,21.9973]
[1755366996241,0.94416,4405.5,4405.4,21.9973]
[1755366996745,0.62606,4405.5,4405.4,21.9973]
[1755366998648,0.94416,4405.5,4405.4,21.9973]
[1755367005850,1.48346,4405.5,4405.4,21.9973]
[1755367008254,1.70939356,4405.5,4405.4,21.9973]
[1755367015862,1.70939356,4405.5,4405.4,21.9953]
[1755367020465,0.7728,4406.4,4406.3,0.5843]
[1755367020657,1.93299047,4406.4,4406.3,22.0115]
[1755367020964,2.38655047,4406.4,4406.3,20.7007]
[1755367021154,2.38655047,4406.4,4406.3,20.535]
[1755367021367,1.71320623,4406.4,4406.3,20.535]
[1755367022465,2.38655714,4406.4,4406.3,20.535]
[1755367022762,2.38647568,4406.4,4406.3,20.535]
[1755367023464,1.71312477,4406.4,4406.3,20.535]
[1755367023658,0.62059,4406.1,4406.0,0.8432]
[1755367023863,2.36679908,4406.1,4406.0,22.0105]
[1755367024864,2.38649908,4406.1,4406.0,22.0105]
[1755367025060,2.38649908,4406.1,4406.0,1.0913]
[1755367025061,3.05984278,4406.1,4406.0,1.0913]
[1755367025363,3.05984278,4406.1,4406.0,20.534]
[1755367025964,1.48734,4405.7,4405.6,0.6727]
[1755367026164,1.71320477,4405.7,4405.6,21.2057]
[1755367028461,1.71320477,4405.7,4405.6,21.7529]
[1755367028661,1.71320477,4405.7,4405.6,22.0095]
[1755367031374,1.7145957,4405.7,4405.6,22.0095]
[1755367031972,2.38779019,4405.7,4405.6,22.0095]
[1755367032162,2.38779019,4405.7,4405.6,1.4765]
[1755367032470,2.38779019,4405.7,4405.6,22.0085]
[1755367033070,2.38779019,4405.7,4405.6,22.0095]
[1755367035074,2.38779019,4405.7,4405.6,1.4765]
[1755367035378,2.38779019,4405.7,4405.6,22.0095]
[1755367037372,1.7145957,4405.7,4405.6,22.0095]
[1755367040974,0.6808957,4405.7,4405.6,22.0095]
[1755367043883,0.8429957,4405.7,4405.6,22.0095]
[1755367044075,1.1613957,4405.7,4405.6,22.0095]
[1755367044276,1.7367957,4405.7,4405.6,22.0095]
[1755367044683,1.7167957,4405.7,4405.6,22.0095]
[1755367044980,1.4606957,4405.7,4405.6,22.0095]
[1755367045682,1.7367957,4405.7,4405.6,22.0075]
[1755367048578,1.50954,4405.7,4405.6,22.0075]
[1755367048783,1.73675861,4405.7,4405.6,22.0075]
[1755367049883,0.84295861,4405.7,4405.6,22.0075]
[1755367050982,1.16135861,4405.7,4405.6,22.0075]
[1755367051379,1.42865861,4405.7,4405.6,22.0075]
[1755367054579,1.42876816,4405.7,4405.6,22.0075]
[1755367054985,1.11036816,4405.7,4405.6,22.0075]
[1755367055481,1.78330114,4405.7,4405.6,22.0075]
[1755367055684,1.51600114,4405.7,4405.6,22.0075]
[1755367056682,1.83440114,4405.7,4405.6,22.0075]
[1755367058486,2.40720114,4405.7,4405.6,22.0075]
[1755367063686,2.13210114,4405.7,4405.6,22.0075]
[1755367064085,2.40720114,4405.7,4405.6,22.0075]
[1755367069392,2.38820114,4405.7,4405.6,22.0075]
[1755367070195,0.94731,4405.0,4404.9,1.4702]
[1755367070391,1.72253419,4405.0,4404.9,21.9982]
[1755367070793,1.72253419,4405.0,4404.9,21.6297]
[1755367070999,1.72253419,4405.0,4404.9,1.1017]
[1755367071000,2.39533197,4405.0,4404.9,1.1017]
[1755367071298,1.49674,4404.7,4404.6,33.1882]
[1755367071506,1.72256419,4404.7,4404.6,54.0847]
[1755367072095,1.49678,4404.3,4404.2,0.8486]
[1755367072296,1.72260419,4404.3,4404.2,21.6307]
[1755367072496,0.45386,4403.5,4403.4,4.4249]
[1755367072795,0.87846,4403.5,4403.4,24.9539]
[1755367072999,1.19676,4403.5,4403.4,25.207]
[1755367079899,0.45386,4403.5,4403.4,25.207]
[1755367080198,0.45386,4403.6,4403.5,1.4702]
[1755367080594,3.3831,4404.4,4404.3,0.1747]
[1755367080798,0.62907,4404.4,4404.3,22.0022]
[1755367081202,0.94737,4404.4,4404.3,22.0022]
[1755367081407,1.19667,4404.4,4404.3,22.0022]
[1755367081707,1.49677,4404.4,4404.3,22.0022]
[1755367087108,0.87842,4403.9,4403.8,1.4702]
[1755367087306,1.49682,4403.9,4403.8,22.0042]
[1755367088512,0.62912,4403.9,4403.8,22.0042]
[1755367089409,0.45382,4403.9,4403.8,22.0042]
[1755367091808,0.45382,4404.0,4403.9,1.4702]
[1755367092512,3.2078,4404.4,4404.3,1.4702]
[1755367092707,3.2078,4404.4,4404.3,22.0132]
[1755367093314,3.66157,4404.4,4404.3,22.0132]
[1755367094213,0.45377,4404.4,4404.3,22.0132]
[1755367096806,0.45376,4404.5,4404.3,21.1395]
[1755367097014,0.77206,4404.5,4404.4,1.4702]
[1755367097617,0.94736,4404.5,4404.4,1.4702]
[1755367100011,0.45374,4404.7,4404.6,1.1972]
[1755367100214,0.45373,4404.9,4404.8,1.4494]
[1755367100410,0.85259749,4404.9,4404.8,21.9864]
[1755367100616,0.1723,4404.9,4404.8,21.9864]
[1755367100916,0.94481,4405.0,4404.9,1.4494]
[1755367101116,0.62601,4405.0,4404.9,1.4494]
[1755367101617,0.94481,4405.0,4404.9,1.4494]
[1755367102120,1.51311,4405.0,4404.9,1.4494]
[1755367102917,1.51311,4405.0,4404.9,21.9884]
[1755367109823,1.49281,4405.0,4404.9,21.9884]
[1755367110418,3.2078,4405.5,4404.9,20.7912]
[1755367110619,0.3188,4406.4,4405.4,0.2522]
[1755367110825,1.61804431,4406.1,4406.0,1.4494]
[1755367111020,1.61804431,4406.1,4406.0,22.0094]
[1755367111824,2.03704431,4406.1,4406.0,22.0094]
[1755367112021,2.54674431,4406.1,4406.0,22.0094]
[1755367112423,0.67334431,4406.1,4406.0,22.0094]
[1755367119838,0.67334431,4406.1,4406.0,22.46301]
[1755367131448,0.4915,4406.8,4406.7,1.55093]
[1755367131648,0.4915,4406.8,4406.7,22.46573]
[1755367132653,1.4128,4407.3,4407.2,1.2243]
[1755367132955,1.4128,4407.3,4407.2,22.0122]
[1755367133249,0.4145,4407.3,4407.2,22.46568]